fUST/lending_fUST_20260223
["ID","MTS","AMOUNT","RATE_DAILY","PERIOD"]
[406379529,1771837841121,-51786.53230812,0.00046549,2]
[406379531,1771837841131,-8609.36,0.00046575,120]
[406379533,1771837841139,-2000.0,0.00046667,21]
[406379535,1771837841148,-240.88670306,0.00046717,2]
[406379537,1771837841158,-509.94,0.00046744,120]
[406379539,1771837841167,-41047.2187711,0.00046988,4]
[406379541,1771837841175,-1204.79363172,0.00046988,4]
[406379543,1771837841186,-168.0,0.00046997,2]
[406379545,1771837841195,-154.83,0.00046997,120]
[406379547,1771837841205,-191300.04620289,0.00046998,2]
[406379560,1771837841320,-280.03725112,0.00032063,2]
[406379562,1771837841329,-290.39862941,0.00032063,2]
[406379564,1771837841338,-301.1433787,0.00032063,2]
[406379566,1771837841347,-3457.37748167,0.00046998,2]
[406379741,1771837846170,-36.55960236,0.000219,4]
[406379742,1771837846190,-177.27797984,0.000219,4]
[406379743,1771837846199,-134.93223618,0.00021917,2]
[406379744,1771837846210,-817.30581653,0.00021917,2]
[406379745,1771837846294,-1047.76194729,0.00021917,2]
[406379746,1771837846303,-172.98,0.0004,30]
[406379747,1771837846312,-176.13,0.0004,30]
[406379748,1771837846321,-172.98,0.00042,30]
[406379749,1771837846330,-176.13,0.00042,30]
[406379750,1771837846339,-11186.751555,0.00043186,120]
[406379752,1771837846350,-1313.248445,0.00043186,120]
[406379754,1771837846359,-4894.77366371,0.00043686,120]
[406379755,1771837846839,-7605.22633629,0.00043686,120]
[406379756,1771837846848,-172.98,0.000441,30]
[406379757,1771837846857,-7376.895515,0.00044186,120]
[406379758,1771838046638,5000.0,0.000157,120]
[406379760,1771838068517,2929.71104965,0.000157,120]
[406379770,1771838745122,-251.06318864,0.00013158,2]
[406379782,1771838837085,-525.63470843,0.00013158,2]
[406379783,1771838837194,-150.0,0.00013358,2]
[406379784,1771838837216,-611.0,0.00013425,2]
[406379785,1771838837236,-165.78854723,0.00013699,2]
[406379786,1771838837255,-500.0,0.00013699,2]
[406379787,1771838837275,-760.94999545,0.00013753,2]
[406379788,1771838837295,-150.10799448,0.00014247,2]
[406379789,1771838837315,-180.26624668,0.000149,2]
[406379790,1771838837335,-177.0,0.00015358,2]
[406379791,1771838837354,-126.09715473,0.000157,2]
[406379799,1771838845091,-27.12125941,0.000157,2]
[406379800,1771838845113,-234.68283215,0.00015755,2]
[406379801,1771838845136,-234.68283215,0.00015755,2]
[406379802,1771838845156,-736.47271507,0.00015755,2]
[406379803,1771838845176,-150.0,0.000158,2]
[406379804,1771838845197,-150.0,0.000163,2]
[406379805,1771838845217,-196.6,0.000169,2]
[406379806,1771838845237,-204.0,0.00017358,2]
[406379807,1771838845258,-231.0,0.00019358,2]
[406379808,1771838845277,-121.84097417,0.0002,2]
[406379809,1771838846088,-91.07314938,0.0002,2]
[406379810,1771838846110,-85.13820665,0.00021358,2]
[406379811,1771838850110,-172.86179335,0.00021358,2]
[406379812,1771838850131,-1200.0,0.00021396,2]
[406379813,1771838850154,-548.17801453,0.00021397,2]
[406379819,1771838962083,-868.49988555,0.00015,2]
[406379820,1771838962102,-4602.7932812,0.00016899,2]
[406379821,1771838962122,-300.0,0.00016999,2]
[406379822,1771838962141,-5236.02068545,0.00017,2]
[406379823,1771838972088,-16294.33220199,0.00017,2]
[406379824,1771838972107,-29414.68100442,0.000173,2]
[406379825,1771838972126,-2149.80380588,0.000176,2]
[406379826,1771838972145,-1010.74611232,0.00017819,11]
[406379827,1771838972164,-677.42,0.0001799,3]
[406379828,1771838972184,-312.31933907,0.00017999,2]
[406379829,1771838972203,-188.82598743,0.00017999,2]
[406379830,1771838972223,-500.0,0.00017999,2]
[406379831,1771838972244,-500.0,0.00017999,2]
[406379832,1771838972264,-500.0,0.00017999,2]
[406379833,1771838972285,-500.0,0.00017999,2]
[406379834,1771838972305,-500.0,0.00017999,2]
[406379835,1771838972327,-500.0,0.00017999,2]
[406379836,1771838972346,-500.0,0.00017999,2]
[406379837,1771838972366,-500.0,0.00017999,2]
[406379838,1771838972386,-500.0,0.00017999,2]
[406379839,1771838972405,-500.0,0.00017999,2]
[406379840,1771838972425,-500.0,0.00017999,2]
[406379841,1771838972445,-500.0,0.00017999,2]
[406379842,1771838972465,-500.0,0.00017999,2]
[406379843,1771838972486,-500.0,0.00017999,2]
[406379844,1771838972505,-500.0,0.00017999,2]
[406379845,1771838972526,-500.0,0.00017999,2]
[406379846,1771838972546,-500.0,0.00017999,2]
[406379847,1771838972661,-500.0,0.00017999,2]
[406379848,1771838972682,-500.0,0.00017999,2]
[406379849,1771838972702,-500.0,0.00017999,2]
[406379850,1771838972722,-500.0,0.00017999,2]
[406379851,1771838972743,-500.0,0.00017999,2]
[406379852,1771838972764,-500.0,0.00017999,2]
[406379853,1771838972785,-500.0,0.00017999,2]
[406379854,1771838972806,-500.0,0.00017999,2]
[406379855,1771838972826,-500.0,0.00017999,2]
[406379856,1771838972845,-500.0,0.00017999,2]
[406379857,1771838972867,-500.0,0.00017999,2]
[406379858,1771838972888,-500.0,0.00017999,2]
[406379859,1771838972908,-500.0,0.00017999,2]
[406379860,1771838972927,-500.0,0.00017999,2]
[406379861,1771838972947,-500.0,0.00017999,2]
[406379862,1771838972968,-500.0,0.00017999,2]
[406379863,1771838972987,-500.0,0.00017999,2]
[406379864,1771838973007,-500.0,0.00017999,2]
[406379865,1771838973027,-500.0,0.00017999,2]
[406379866,1771838973048,-500.0,0.00017999,2]
[406379867,1771838973070,-500.0,0.00017999,2]
[406379868,1771838973092,-500.0,0.00017999,2]
[406379869,1771838973115,-500.0,0.00017999,2]
[406379870,1771838973137,-500.0,0.00017999,2]
[406379871,1771838973158,-500.0,0.00017999,2]
[406379872,1771838973178,-500.0,0.00017999,2]
[406379873,1771838973205,-596.03807931,0.00017999,2]
[406379874,1771838973226,-500.0,0.00017999,2]
[406379875,1771838973248,-500.0,0.00017999,2]
[406379876,1771838973269,-500.0,0.00017999,2]
[406379877,1771838973290,-500.0,0.00017999,2]
[406379878,1771838973311,-500.0,0.00017999,2]
[406379879,1771838973332,-500.0,0.00017999,2]
[406379880,1771838973351,-500.0,0.00017999,2]
[406379881,1771838973372,-500.0,0.00017999,2]
[406379882,1771838973394,-500.0,0.00017999,2]
[406379883,1771838973413,-500.0,0.00017999,2]
[406379884,1771838973434,-500.0,0.00017999,2]
[406379885,1771838973454,-500.0,0.00017999,2]
[406379886,1771838973475,-500.0,0.00017999,2]
[406379887,1771838973497,-500.0,0.00017999,2]
[406379888,1771838973520,-500.0,0.00017999,2]
[406379889,1771838973540,-500.0,0.00017999,2]
[406379890,1771838973565,-366.21238898,0.00017999,2]
[406379891,1771838973586,-500.0,0.00017999,2]
[406379892,1771838973608,-500.0,0.00017999,2]
[406379893,1771838973628,-500.0,0.00017999,2]
[406379894,1771838973650,-500.0,0.00017999,2]
[406379895,1771838973671,-500.0,0.00017999,2]
[406379896,1771838973691,-500.0,0.00017999,2]
[406379897,1771838973712,-500.0,0.00017999,2]
[406379898,1771838973733,-500.0,0.00017999,2]
[406379899,1771838973754,-500.0,0.00017999,2]
[406379900,1771838973774,-500.0,0.00017999,2]
[406379901,1771838973798,-500.0,0.00017999,2]
[406379902,1771838973818,-500.0,0.00017999,2]
[406379903,1771838973840,-500.0,0.00017999,2]
[406379904,1771838973860,-500.0,0.00017999,2]
[406379905,1771838973882,-582.9297736,0.00017999,2]
[406379906,1771838973902,-500.0,0.00017999,2]
[406379907,1771838973921,-500.0,0.00017999,2]
[406379908,1771838973941,-500.0,0.00017999,2]
[406379909,1771838973961,-500.0,0.00017999,2]
[406379910,1771838973982,-500.0,0.00017999,2]
[406379911,1771838974003,-500.0,0.00017999,2]
[406379912,1771838974026,-500.0,0.00017999,2]
[406379913,1771838974046,-253.73377529,0.00017999,2]
[406379914,1771838974128,-591.6731417,0.00017094,2]
[406379915,1771838974150,-246.26622471,0.00017999,2]
[406379916,1771838974171,-500.0,0.00017999,2]
[406379917,1771838974191,-500.0,0.00017999,2]
[406379918,1771838974212,-500.0,0.00017999,2]
[406379919,1771838974233,-500.0,0.00017999,2]
[406379920,1771838974253,-500.0,0.00017999,2]
[406379921,1771838974273,-500.0,0.00017999,2]
[406379922,1771838974293,-500.0,0.00017999,2]
[406379923,1771838974313,-500.0,0.00017999,2]
[406379924,1771838974333,-580.96383089,0.00017999,2]
[406379925,1771838974354,-500.0,0.00017999,2]
[406379926,1771838974375,-500.0,0.00017999,2]
[406379927,1771838974395,-500.0,0.00017999,2]
[406379928,1771838974416,-500.0,0.00017999,2]
[406379929,1771838974436,-500.0,0.00017999,2]
[406379930,1771838974456,-300.0,0.00017999,2]
[406379931,1771838974476,-71718.65437197,0.00018,2]
[406379932,1771838975148,-5545.91206008,0.00018,2]
[406379933,1771838975169,-420.0,0.00018567,2]
[406379934,1771838975188,-22450.97477014,0.0002,2]
[406379935,1771838975207,-1379.56015804,0.0002,3]
[406379936,1771838975228,-587.0,0.00020279,2]
[406379937,1771838975250,-209.41973157,0.00021397,2]
[406379974,1771839032223,-150.0,0.00021918,2]
[406379977,1771839032232,-150.0,0.00021918,2]
[406380003,1771839032368,-150.0,0.00021918,2]
[406380005,1771839032378,-150.0,0.00021959,2]
[406380007,1771839032387,-300.0,0.00021999,2]
[406380009,1771839032397,-300.0,0.00021999,2]
[406380011,1771839032406,-300.0,0.00021999,2]
[406380013,1771839032416,-300.0,0.00021999,2]
[406380015,1771839032426,-300.0,0.00021999,2]
[406380017,1771839032435,-300.0,0.00021999,2]
[406380019,1771839032444,-487.0,0.00021999,2]
[406380021,1771839032454,-472.48661905,0.00022,7]
[406380024,1771839032465,-3792.79452271,0.00022,7]
[406380051,1771839038343,-213.44886754,0.00022,7]
[406380053,1771839038355,-45009.5974606,0.00022,7]
[406380055,1771839038364,-250.0,0.00022466,2]
[406380056,1771839038374,-300.61629608,0.00022466,2]
[406380057,1771839038384,-300.0,0.00022466,2]
[406380058,1771839038393,-260.7578727,0.00022542,2]
[406380059,1771839038403,-350.0,0.00023014,2]
[406380061,1771839038412,-298.54229767,0.00023014,2]
[406380062,1771839038422,-450.0,0.00023562,2]
[406380063,1771839038431,-420.0,0.00023906,2]
[406380064,1771839038441,-300.0,0.00023906,2]
[406380065,1771839038451,-177.0,0.00023959,2]
[406380066,1771839038460,-550.0,0.0002411,2]
[406380067,1771839038470,-351.0,0.00024199,2]
[406380068,1771839038479,-566.862158,0.00024276,2]
[406380069,1771839038489,-150.0,0.00024658,2]
[406380070,1771839038498,-646.30401164,0.00024658,2]
[406380071,1771839038508,-507.86,0.0002499,10]
[406380072,1771839038518,-968.46,0.0002499,10]
[406380073,1771839038528,-807.05,0.0002499,10]
[406380074,1771839038538,-672.54,0.0002499,10]
[406380075,1771839038548,-560.45,0.0002499,10]
[406380076,1771839038558,-10819.45929843,0.00025,15]
[406380077,1771839038568,-20099.71818831,0.00025,2]
[406380078,1771839038581,-2690.32481533,0.00025,2]
[406380079,1771839038591,-10364.0,0.00025,2]
[406380080,1771839038601,-150.0,0.00025,2]
[406380081,1771839038611,-500.0,0.00025,2]
[406380082,1771839038620,-764.50538306,0.00025,2]
[406380083,1771839038630,-73656.90930397,0.00025,7]
[406380084,1771839038640,-300.35847136,0.00025205,2]
[406380085,1771839038651,-1000.0,0.000255,2]
[406380086,1771839038660,-204.0,0.00025959,2]
[406380087,1771839038670,-587.0,0.00025977,2]
[406380088,1771839038679,-532.90570729,0.00026,2]
[406380089,1771839038689,-1897.50192457,0.00026,30]
[406380090,1771839038697,-19900.0,0.00026,2]
[406380091,1771839038706,-4994.87,0.00026,2]
[406380092,1771839038714,-195.76419351,0.0002616,2]
[406380093,1771839038722,-150.0,0.0002739,2]
[406380094,1771839038732,-500.0,0.00027397,2]
[406380095,1771839038742,-500.0,0.00027397,2]
[406380096,1771839038752,-500.0,0.00027397,2]
[406380097,1771839038762,-500.0,0.00027397,2]
[406380098,1771839038772,-500.0,0.00027397,2]
[406380099,1771839038782,-500.0,0.00027397,2]
[406380100,1771839038791,-500.0,0.00027397,2]
[406380101,1771839038802,-500.0,0.00027397,2]
[406380102,1771839038811,-500.0,0.00027397,2]
[406380103,1771839038821,-500.0,0.00027397,2]
[406380104,1771839038831,-500.0,0.00027397,2]
[406380105,1771839038841,-500.0,0.00027397,2]
[406380106,1771839038850,-500.0,0.00027397,2]
[406380107,1771839038860,-500.0,0.00027397,2]
[406380108,1771839038869,-500.0,0.00027397,2]
[406380109,1771839038879,-500.0,0.00027397,2]
[406380110,1771839038888,-500.0,0.00027397,2]
[406380111,1771839038898,-505.50896848,0.00027397,2]
[406380112,1771839038907,-500.0,0.00027397,2]
[406380113,1771839038917,-500.0,0.00027397,2]
[406380114,1771839038927,-17357.81182081,0.000275,2]
[406380115,1771839038936,-5863.88839586,0.00027682,2]
[406380116,1771839038946,-209.60900962,0.00027682,2]
[406380117,1771839038956,-2931.94419793,0.00027685,2]
[406380118,1771839038965,-500.0,0.00027693,2]
[406380119,1771839038974,-72326.8916821,0.00027695,2]
[406380120,1771839038988,-231.0,0.00027959,2]
[406380121,1771839038997,-653.17866967,0.00028,2]
[406380122,1771839039008,-703.0,0.00028229,2]
[406380123,1771839039019,-500.0,0.00029593,7]
[406380124,1771839039031,-258.0,0.00029959,2]
[406380125,1771839039044,-47140.5681219,0.0003,30]
[406380126,1771839039058,-500.0,0.00030557,7]
[406380127,1771839039071,-744.15762423,0.0003322,2]
[406380128,1771839039084,-841.58842572,0.00034343,7]
[406380141,1771839040810,-329.23,0.00034343,7]
[406380143,1771839040826,-829.18157428,0.00034343,7]
[406380145,1771839040838,-165.08107842,0.00035869,10]
[406380146,1771839040849,-566.862158,0.00036414,2]
[406380147,1771839040861,-3163.19426514,0.00039999,2]
[406380148,1771839040873,-172.99,0.0004,30]
[406380149,1771839040885,-86.55107913,0.0004038,2]
[406380150,1771839041763,-360.33092468,0.0004038,2]
[406380151,1771839041774,-1040.54070276,0.000404,2]
[406380156,1771839043560,-1546.7963058,0.000404,2]
[406380157,1771839043842,-822.10023446,0.000404,2]
[406380158,1771839043857,-1585.43275698,0.000404,2]
[406380159,1771839043866,-161.09,0.00041,59]
[406380160,1771839043876,-1003.57705901,0.00042,120]
[406380168,1771839046247,-202.12140319,0.00042,120]
[406380169,1771839046257,-350.71859681,0.00043157,3]
[406380170,1771839046268,-2581.22560112,0.00043157,3]
[406380171,1771839046277,-604.38162528,0.00043185,16]
[406380172,1771839046286,-500.0,0.00043185,16]
[406380173,1771839046295,-8550.70301502,0.00043186,120]
[406380174,1771839046407,-3949.29698498,0.00043186,120]
[406380175,1771839046417,-32561.12284345,0.0004321,120]
[406380176,1771839046462,-8895.882067,0.0004321,120]
[406380177,1771839112364,208.75446729,0.00013058,2]
[406380178,1771839126992,4444.58,0.00019,2]
[406380247,1771839930120,-1493.34717218,0.00012142,2]
[406380248,1771840026095,-124.41617747,0.00012142,2]
[406380249,1771840026117,-150.0,0.00012203,2]
[406380250,1771840026137,-1430.19145245,0.00012265,2]
[406380252,1771840052101,-1577.38315847,0.00012265,2]
[406380253,1771840052126,-983.0,0.00012388,2]
[406380254,1771840052153,-5000.0,0.00012389,2]
[406380255,1771840052179,-603.0,0.00012897,2]
[406380256,1771840052204,-300.0,0.00013272,2]
[406380257,1771840052228,-500.0,0.00013273,2]
[406380258,1771840052251,-575.19816555,0.00013273,2]
[406380259,1771840052274,-300.0,0.00013697,2]
[406380260,1771840052298,-503.71233878,0.00013699,2]
[406380261,1771840052325,-500.0,0.00013699,2]
[406380262,1771840052348,-500.0,0.00013699,2]
[406380263,1771840052374,-176.08937413,0.00013718,2]
[406380264,1771840148092,-294.0,0.00013426,2]
[406380265,1771840155093,-4706.0,0.00013426,2]
[406380266,1771840155115,-672.8,0.00013562,2]
[406380267,1771840155135,-300.0,0.00013698,2]
[406380268,1771840155156,-14335.2255,0.00013699,2]
[406380269,1771840157098,-3462.63869149,0.00013699,2]
[406380270,1771840157118,-377.27894287,0.00013699,2]
[406380271,1771840157138,-168.0,0.00013717,2]
[406380272,1771840157160,-500.0,0.00013717,2]
[406380273,1771840157180,-586.82311353,0.00013717,2]
[406380274,1771840157202,-500.0,0.00013717,2]
[406380275,1771840157223,-500.0,0.00013717,2]
[406380276,1771840157244,-500.0,0.00013717,2]
[406380277,1771840157265,-500.0,0.00013717,2]
[406380278,1771840157287,-500.0,0.00013717,2]
[406380279,1771840157309,-500.0,0.00013717,2]
[406380280,1771840157331,-500.0,0.00013717,2]
[406380281,1771840157352,-500.0,0.00013717,2]
[406380282,1771840157373,-446.6826946,0.00013717,2]
[406380283,1771840157394,-322.10300913,0.00013717,2]
[406380284,1771840157415,-500.0,0.00013717,2]
[406380285,1771840157436,-500.0,0.00013717,2]
[406380286,1771840157458,-500.0,0.00013717,2]
[406380287,1771840157480,-500.0,0.00013717,2]
[406380288,1771840157501,-500.0,0.00013717,2]
[406380289,1771840157524,-238.09638309,0.00013717,2]
[406380290,1771840157546,-1006.05882864,0.00013821,2]
[406380291,1771840157567,-177.0,0.00014204,2]
[406380292,1771840157586,-383.31526415,0.00015,5]
[406380293,1771840157606,-180.132005,0.00015068,2]
[406380294,1771840157624,-2998.39140323,0.00015093,2]
[406380295,1771840173257,-4835.04694556,0.00014942,2]
[406380296,1771840173278,-500.0,0.0001501,2]
[406380297,1771840173297,-399.90958457,0.00015093,2]
[406380298,1771840173317,-204.0,0.00016204,2]
[406380299,1771840209664,151.91,6.5e-05,2]
[406380300,1771840210298,151.91,6.5e-05,2]
[406380301,1771840212362,121.88981456,6.5e-05,2]
[406380302,1771840212386,30.02018544,6.5e-05,2]
[406380303,1771840212897,151.91,6.5e-05,2]
[406380304,1771840213589,151.91,6.5e-05,2]
[406380305,1771840214268,151.91,6.5e-05,2]
[406380306,1771840214792,151.91,6.6e-05,2]
[406380307,1771840215392,151.91,6.6e-05,2]
[406380308,1771840216097,151.91,6.6e-05,2]
[406380309,1771840216754,151.91,6.6e-05,2]
[406380310,1771840217267,151.91,6.6e-05,2]
[406380311,1771840217950,151.91,6.6e-05,2]
[406380312,1771840218611,151.91,6.6e-05,2]
[406380313,1771840219319,151.91,6.6e-05,2]
[406380314,1771840219990,151.91,6.6e-05,2]
[406380315,1771840220691,151.91,6.6e-05,2]
[406380316,1771840221919,151.91,6.7e-05,2]
[406380317,1771840222566,151.91,6.7e-05,2]
[406380318,1771840223225,151.91,6.7e-05,2]
[406380319,1771840223890,151.91,6.7e-05,2]
[406380320,1771840224553,151.91,6.7e-05,2]
[406380321,1771840225340,123.99422952,6.7e-05,2]
[406380322,1771840225371,27.91577048,6.7e-05,2]
[406380323,1771840225986,151.91,6.7e-05,2]
[406380324,1771840226639,151.91,6.7e-05,2]
[406380325,1771840227297,151.91,6.7e-05,2]
[406380326,1771840228019,151.91,6.7e-05,2]
[406380327,1771840228625,151.91,6.7e-05,2]
[406380328,1771840229281,151.91,6.8e-05,2]
[406380329,1771840229904,151.91,6.8e-05,2]
[406380330,1771840230639,151.91,6.8e-05,2]
[406380331,1771840231284,151.91,6.8e-05,2]
[406380333,1771840231952,151.91,6.8e-05,2]
[406380400,1771840232343,-231.0,0.00018204,2]
[406380403,1771840232354,-1559.23957566,0.00018978,2]
[406380407,1771840232364,-272.45332981,0.00019078,2]
[406380410,1771840232373,-156.0,0.00019178,2]
[406380413,1771840232382,-151.55000802,0.0002,2]
[406380416,1771840232391,-258.0,0.00020203,2]
[406380419,1771840232400,-19376.0,0.00021,2]
[406380422,1771840232409,-196.81977,0.00021134,2]
[406380425,1771840232419,-500.0,0.00021138,2]
[406380428,1771840232427,-13512.8244957,0.00021139,2]
[406380430,1771840232436,-744.15270709,0.00021818,2]
[406380434,1771840232445,-500.0,0.00021999,2]
[406380437,1771840232454,-500.0,0.00021999,2]
[406380439,1771840232463,-196.81977,0.00022023,2]
[406380442,1771840232473,-6583.2619513,0.0002207,2]
[406380445,1771840232482,-285.0,0.00022203,2]
[406380448,1771840232491,-196.81977,0.00022913,2]
[406380451,1771840232499,-196.81977,0.00023803,2]
[406380454,1771840232508,-312.0,0.00024204,2]
[406380457,1771840232518,-196.81977,0.00024692,2]
[406380460,1771840232528,-817.30581653,0.00024999,2]
[406380463,1771840232537,-196.81977,0.00025582,2]
[406380466,1771840232547,-156.0,0.00028711,2]
[406380469,1771840232556,-180.132005,0.00028767,60]
[406380472,1771840232566,-4309.2048004,0.00032188,2]
[406380475,1771840232575,-500.0,0.00032324,16]
[406380478,1771840232585,-239.9229665,0.00032325,2]
[406380481,1771840232594,-5182.620133,0.00032798,2]
[406380484,1771840232603,-500.0,0.00032807,16]
[406380487,1771840232613,-500.0,0.00032807,16]
[406380490,1771840232623,-218.62353735,0.00032807,2]
[406380493,1771840232632,-6599.3421918,0.00032808,2]
[406380495,1771840232641,-447.504979,0.00032808,2]
[406380497,1771840232650,-24698.8387926,0.00032808,2]
[406380499,1771840232659,-770.109492,0.00032808,2]
[406380501,1771840232669,-744.15762423,0.00033122,2]
[406380503,1771840232679,-200.0,0.00033586,36]
[406380505,1771840232688,-512.8926523,0.00035601,2]
[406380507,1771840232698,-160.299,0.00035711,2]
[406380509,1771840232707,-6599.3421918,0.00037254,2]
[406380510,1771840232716,-961.5135572,0.00037624,2]
[406380513,1771840232726,-159.27546834,0.00037906,2]
[406380515,1771840232735,-447.504979,0.00038,2]
[406380517,1771840232744,-214.542674,0.00038837,2]
[406380519,1771840232753,-552.34415805,0.00040171,16]
[406380521,1771840232763,-5511.0558552,0.00040172,2]
[406380523,1771840232772,-316.26507141,0.00040852,2]
[406380524,1771840232781,-161.09,0.00041235,60]
[406380525,1771840232791,-6599.3421918,0.000417,2]
[406380526,1771840232801,-1229.6827755,0.00041815,2]
[406380527,1771840232812,-171.81197453,0.00042143,2]
[406380528,1771840232823,-2059.05570885,0.000425,2]
[406380529,1771840232833,-160.0,0.00042571,3]
[406380530,1771840232843,-270.28,0.00043169,10]
[406380531,1771840232853,-324.33,0.00043179,10]
[406380532,1771840232863,-389.2,0.00043183,10]
[406380533,1771840232872,-1521.13,0.00043188,120]
[406380534,1771840232882,-467.04,0.00043189,10]
[406380535,1771840232891,-447.504979,0.00043193,2]
[406380536,1771840232900,-5182.620133,0.00043199,3]
[406380537,1771840232911,-250.0,0.00043209,120]
[406380538,1771840232929,-250.0,0.00043209,120]
[406380539,1771840232938,-250.0,0.00043209,120]
[406380540,1771840232948,-250.0,0.00043209,120]
[406380541,1771840232958,-250.0,0.00043209,120]
[406380542,1771840232968,-250.0,0.00043209,120]
[406380543,1771840232977,-250.0,0.00043209,120]
[406380544,1771840232987,-250.0,0.00043209,120]
[406380545,1771840232998,-250.0,0.00043209,120]
[406380546,1771840233007,-250.0,0.00043209,120]
[406380547,1771840233017,-250.0,0.00043209,120]
[406380548,1771840233026,-250.0,0.00043209,120]
[406380549,1771840233036,-500.0,0.00043209,120]
[406380550,1771840233045,-250.0,0.00043209,120]
[406380551,1771840233055,-250.0,0.00043209,120]
[406380552,1771840233064,-250.0,0.00043209,120]
[406380553,1771840233074,-500.0,0.00043209,120]
[406380554,1771840233084,-250.0,0.00043209,120]
[406380555,1771840233093,-250.0,0.00043209,120]
[406380556,1771840233102,-250.0,0.00043209,120]
[406380557,1771840233112,-500.0,0.00043209,120]
[406380558,1771840233122,-250.0,0.00043209,120]
[406380559,1771840233131,-250.0,0.00043209,120]
[406380560,1771840233142,-250.0,0.00043209,120]
[406380561,1771840233151,-250.0,0.00043209,120]
[406380562,1771840233162,-500.0,0.00043209,120]
[406380563,1771840233171,-250.0,0.00043209,120]
[406380564,1771840233181,-151.0,0.00043209,120]
[406380565,1771840233190,-329.28002358,0.00043209,120]
[406380566,1771840233200,-500.0,0.00043209,120]
[406380567,1771840233210,-250.0,0.00043209,120]
[406380568,1771840233219,-250.0,0.00043209,120]
[406380569,1771840233229,-288.52962849,0.00043209,120]
[406380570,1771840233239,-151.0,0.00043209,120]
[406380571,1771840233249,-500.0,0.00043209,120]
[406380572,1771840233259,-250.0,0.00043209,120]
[406380573,1771840233269,-151.0,0.00043209,120]
[406380574,1771840233278,-500.0,0.00043209,120]
[406380575,1771840233288,-151.0,0.00043209,120]
[406380576,1771840233298,-500.0,0.00043209,120]
[406380577,1771840233307,-151.0,0.00043209,120]
[406380578,1771840233317,-151.0,0.00043209,120]
[406380579,1771840233328,-500.0,0.00043209,120]
[406380580,1771840233338,-151.0,0.00043209,120]
[406380581,1771840233348,-156.587,0.00043209,120]
[406380582,1771840233358,-151.0,0.00043209,120]
[406380583,1771840233368,-162.380719,0.00043209,120]
[406380584,1771840233378,-500.0,0.00043209,120]
[406380585,1771840233387,-206.4334365,0.00043209,120]
[406380586,1771840233397,-500.0,0.00043209,120]
[406380587,1771840233406,-168.3888056,0.00043209,120]
[406380588,1771840233416,-2200.0,0.00043209,120]
[406380589,1771840233425,-500.0,0.00043209,120]
[406380590,1771840233435,-174.61919141,0.00043209,120]
[406380591,1771840233444,-757.54037972,0.00043209,120]
[406380592,1771840233457,-1523.85962028,0.00043209,120]
[406380593,1771840233467,-516.23394067,0.00043209,120]
[406380594,1771840233477,-181.08010149,0.00043209,120]
[406380595,1771840233486,-478.82633756,0.00043209,120]
[406380596,1771840233498,-1886.98546244,0.00043209,120]
[406380597,1771840233508,-187.78006525,0.00043209,120]
[406380598,1771840233517,-351.14266254,0.00043209,120]
[406380599,1771840233527,-194.72792766,0.00043209,120]
[406380600,1771840233535,-201.93286099,0.00043209,120]
[406380601,1771840233545,-209.40437684,0.00043209,120]
[406380602,1771840233554,-217.15233878,0.00043209,120]